fUSD/lending_fUSD_20240528
["ID","MTS","AMOUNT","RATE_DAILY","PERIOD"]
[328146968,1716934233992,-408.89,0.000344,3]
[328146969,1716934234002,-408.89,0.000344,3]
[328146970,1716934234011,-408.89,0.000344,3]
[328146971,1716934234020,-408.89,0.000344,3]
[328146972,1716934234029,-408.89,0.000344,3]
[328146973,1716934234039,-408.89,0.000344,3]
[328146974,1716934234049,-408.89,0.000344,3]
[328146975,1716934234059,-408.89,0.000344,3]
[328146976,1716934234068,-500.0,0.00034412,10]
[328146977,1716934234077,-765.0,0.00034435,2]
[328146978,1716934234086,-610.0,0.00034435,2]
[328146979,1716934234095,-500.0,0.00034462,30]
[328146980,1716934234105,-500.0,0.00034462,30]
[328146981,1716934234114,-150.0,0.000345,23]
[328146982,1716934234123,-151.0,0.00034508,2]
[328146983,1716934234132,-300.0,0.00034559,120]
[328146984,1716934234142,-155.70703179,0.00034575,10]
[328146985,1716934234152,-52861.5067,0.0003459,120]
[328146986,1716934234161,-500.0,0.00034599,2]
[328146987,1716934234171,-500.0,0.00034599,2]
[328146988,1716934234180,-500.0,0.00034599,2]
[328146989,1716934234189,-500.0,0.00034599,2]
[328146990,1716934234198,-500.0,0.00034599,2]
[328146991,1716934234207,-500.0,0.00034599,2]
[328146992,1716934234216,-500.0,0.00034599,2]
[328146993,1716934234226,-500.0,0.00034599,2]
[328146994,1716934234235,-500.0,0.00034599,2]
[328146995,1716934234245,-500.0,0.00034599,2]
[328146996,1716934234254,-577.21,0.00034599,2]
[328146997,1716934234263,-500.0,0.00034599,2]
[328146998,1716934234272,-500.0,0.00034599,2]
[328146999,1716934234282,-500.0,0.00034599,2]
[328147000,1716934234291,-607.75627607,0.00034599,2]
[328147001,1716934234300,-10956.38790371,0.000346,7]
[328147002,1716934234309,-169.22852844,0.000346,2]
[328147003,1716934234318,-150.0,0.000346,8]
[328147004,1716934234327,-318.97806811,0.000346,2]
[328147005,1716934234336,-157.052907,0.00034648,44]
[328147006,1716934234345,-267.45,0.00034668,2]
[328147007,1716934234355,-500.0,0.00034672,2]
[328147008,1716934234364,-500.0,0.00034672,2]
[328147009,1716934234373,-603.15118474,0.00034672,2]
[328147010,1716934234383,-564.33554961,0.00034672,2]
[328147011,1716934234395,-10956.38790361,0.00034673,7]
[328147012,1716934234404,-542.41147526,0.00034675,2]
[328147013,1716934234413,-27244.6588927,0.00034676,2]
[328147014,1716934234433,-375.1630526,0.00034676,2]
[328147015,1716934234442,-178.2065111,0.00034676,2]
[328147016,1716934234451,-155.43,0.0003468,2]
[328147017,1716934234461,-585.81594326,0.00034681,2]
[328147018,1716934234471,-500.0,0.00034681,2]
[328147019,1716934234480,-500.0,0.00034681,2]
[328147020,1716934234490,-500.0,0.00034681,2]
[328147021,1716934234500,-500.0,0.00034681,2]
[328147022,1716934234509,-500.0,0.00034681,2]
[328147023,1716934234518,-500.0,0.00034681,2]
[328147024,1716934234527,-500.0,0.00034681,2]
[328147025,1716934234536,-500.0,0.00034681,2]
[328147026,1716934234547,-500.0,0.00034681,2]
[328147027,1716934234556,-500.0,0.00034681,2]
[328147028,1716934234565,-2744.99118255,0.00034682,12]
[328147029,1716934234574,-310.99682093,0.00034688,4]
[328147030,1716934234584,-3760.45168137,0.00034688,2]
[328147031,1716934234593,-193.50479954,0.00034688,2]
[328147032,1716934234604,-449.99954919,0.00034688,4]
[328147033,1716934234613,-1211.54065397,0.00034688,4]
[328147034,1716934234622,-155.0,0.00034688,4]
[328147035,1716934234630,-155.0,0.00034688,4]
[328147036,1716934234639,-388.17167976,0.00034688,4]
[328147037,1716934234649,-155.21175719,0.00034688,4]
[328147038,1716934234658,-166.81757453,0.00034688,4]
[328147039,1716934234668,-1386.55437292,0.00034688,4]
[328147040,1716934234678,-406.0176426,0.00034689,7]
[328147041,1716934234687,-500.0,0.00034689,2]
[328147042,1716934234697,-343.0,0.0003469,5]
[328147043,1716934234707,-34280.87849925,0.0003469,11]
[328147044,1716934234724,-3132.50342781,0.0003469,11]
[328147045,1716934234737,-2825.61467163,0.0003469,11]
[328147046,1716934234749,-297.95,0.0003469,11]
[328147047,1716934234761,-1003.32,0.0003469,11]
[328147048,1716934234773,-25605.04680506,0.0003469,11]
[328147049,1716934234782,-111414.95319504,0.0003469,12]
[328147050,1716934234793,-1307.66727657,0.0003469,12]
[328147051,1716934234804,-27702.1745,0.0003469,12]
[328147052,1716934234815,-281.19172138,0.0003469,12]
[328147053,1716934234826,-3462.50905,0.0003469,12]
[328147057,1716934238261,-1538.40988501,0.0003469,12]
[328147058,1716934238273,-1517.50982453,0.0003469,12]
[328147059,1716934238284,-6927.73808183,0.0003469,12]
[328147060,1716934238295,-479.23585153,0.0003469,12]
[328147061,1716934238358,-671.65301558,0.0003469,12]
[328147062,1716934238453,-28191.4812032,0.0003469,12]
[328147063,1716934238464,-1264.42055349,0.0003469,12]
[328147064,1716934238478,-280.92232114,0.0003469,12]
[328147065,1716934238490,-775.9092509,0.0003469,12]
[328147066,1716934238552,-68604.1817128,0.0003469,12]
[328147067,1716934238565,-388.33639583,0.0003469,12]
[328147105,1716934241345,-259.0,0.0003469,5]
[328147106,1716934241356,-13284.89278176,0.0003469,12]
[328147107,1716934241463,-2588.95526832,0.0003469,12]
[328147108,1716934241478,-6619.49999999,0.0003469,12]
[328147109,1716934241490,-1372.20605651,0.0003469,12]
[328147110,1716934241501,-379.9422459,0.0003469,12]
[328147111,1716934242587,-235.88,0.0003468,10]
[328147112,1716934242596,-2164.865,0.0003469,12]
[328147113,1716934242608,-406.0176426,0.0003469,12]
[328147114,1716934242620,-191992.99999989,0.0003469,12]
[328147210,1716934243372,-3475.45,0.0003469,12]
[328147226,1716934243470,-865393.69490162,0.0003469,12]
[328147228,1716934243482,-1523.51395288,0.0003469,12]
[328147230,1716934243497,-15199.47143853,0.0003469,12]
[328147233,1716934243508,-2759.5004898,0.0003469,12]
[328147235,1716934243519,-1483.51991344,0.0003469,12]
[328147239,1716934243570,-39991.68162,0.0003469,12]
[328147240,1716934243582,-3562.31492487,0.0003469,12]
[328147241,1716934243592,-125026.428329,0.0003469,12]
[328147242,1716934243605,-537.16417105,0.0003469,12]
[328147243,1716934243676,-1874.14996587,0.0003469,12]
[328147244,1716934243688,-1385.1838,0.0003469,12]
[328147245,1716934243778,-485.71662021,0.0003469,12]
[328147246,1716934243790,-459.03337979,0.0003469,12]
[328147247,1716934243800,-3743.60468498,0.0003469,12]
[328147248,1716934243915,-6154.35258358,0.0003469,12]
[328147249,1716934243926,-1924.94999999,0.0003469,12]
[328147252,1716934246351,-852.18109769,0.00034689,4]
[328147253,1716934246362,-5000.51833819,0.0003469,12]
[328147254,1716934246374,-4803.45941549,0.0003469,12]
[328147255,1716934246462,-14806.0888339,0.0003469,12]
[328147256,1716934246476,-5190.96915136,0.0003469,12]
[328147257,1716934246489,-76277.99999261,0.0003469,12]
[328147258,1716934246501,-1238.69365205,0.0003469,12]
[328147259,1716934246513,-14663.25085921,0.0003469,12]
[328147260,1716934246525,-13561.47766172,0.0003469,12]
[328147277,1716934248795,-356.60537224,0.00034689,2]
[328147278,1716934248805,-82755.21022968,0.0003469,12]
[328147279,1716934248816,-157.34,0.000347,2]
[328147280,1716934248825,-379.97,0.000347,2]
[328147281,1716934248834,-500.0,0.00034735,30]
[328147282,1716934248844,-500.0,0.00034735,30]
[328147283,1716934248853,-10956.38790361,0.00034745,7]
[328147284,1716934248863,-18396.54140819,0.0003475,14]
[328147285,1716934248872,-152.0,0.00034751,3]
[328147286,1716934248881,-21920.5798881,0.00034776,2]
[328147287,1716934248891,-375.1630526,0.00034776,2]
[328147288,1716934248900,-178.2065111,0.00034776,2]
[328147289,1716934248910,-765.0,0.0003479,2]
[328147290,1716934248919,-610.0,0.0003479,2]
[328147291,1716934248929,-1000.3,0.000348,60]
[328147292,1716934248939,-234950.14122072,0.000348,30]
[328147293,1716934248948,-10956.38790361,0.00034818,7]
[328147294,1716934248959,-155.70703179,0.0003485,10]
[328147295,1716934248968,-500.0,0.00034873,2]
[328147296,1716934248978,-353.83706215,0.00034873,2]
[328147297,1716934248988,-536.79288485,0.00034873,2]
[328147298,1716934248997,-500.0,0.00034873,2]
[328147299,1716934249007,-429.12947675,0.00034873,2]
[328147300,1716934249016,-637.52502271,0.00034873,2]
[328147301,1716934249025,-463.39290431,0.00034873,2]
[328147302,1716934249035,-500.0,0.00034873,2]
[328147303,1716934249044,-577.21,0.00034873,2]
[328147304,1716934249053,-416.67386734,0.00034873,2]
[328147305,1716934249063,-289.28,0.00034873,2]
[328147306,1716934249072,-503.25013206,0.00034873,2]
[328147307,1716934249082,-16596.5008835,0.00034876,2]
[328147308,1716934249091,-11272.421879,0.00034876,2]
[328147309,1716934249100,-5948.3428744,0.00034876,2]
[328147310,1716934249110,-375.1630526,0.00034876,2]
[328147311,1716934249120,-375.1630526,0.00034876,2]
[328147312,1716934249130,-178.2065111,0.00034876,2]
[328147313,1716934249140,-178.2065111,0.00034876,2]
[328147314,1716934249150,-178.2065111,0.00034876,2]
[328147315,1716934249160,-10956.38790361,0.00034891,7]
[328147316,1716934249169,-260.4792743,0.000349,2]
[328147317,1716934249178,-601869.34727704,0.000349,30]
[328147318,1716934249188,-1506.2809873,0.000349,7]
[328147319,1716934249198,-394.14,0.000349,4]
[328147320,1716934249207,-394.14,0.000349,4]
[328147321,1716934249216,-394.14,0.000349,4]
[328147322,1716934249226,-394.14,0.000349,4]
[328147323,1716934249236,-394.14,0.000349,4]
[328147324,1716934249246,-394.14,0.000349,4]
[328147325,1716934249257,-394.14,0.000349,4]
[328147326,1716934249266,-394.14,0.000349,4]
[328147327,1716934249275,-394.14,0.000349,4]
[328147328,1716934249285,-394.14,0.000349,4]
[328147329,1716934249295,-394.14,0.000349,4]
[328147330,1716934249305,-394.14,0.000349,4]
[328147331,1716934249315,-394.14,0.000349,4]
[328147332,1716934249324,-394.14,0.000349,4]
[328147333,1716934249335,-394.14,0.000349,4]
[328147334,1716934249345,-394.14,0.000349,4]
[328147335,1716934249354,-394.14,0.000349,4]
[328147336,1716934249366,-394.14,0.000349,4]
[328147337,1716934249375,-394.14,0.000349,4]
[328147338,1716934249385,-394.14,0.000349,4]
[328147339,1716934249398,-408.89,0.000349,4]
[328147340,1716934249408,-408.89,0.000349,4]
[328147341,1716934249417,-408.89,0.000349,4]
[328147342,1716934249428,-408.89,0.000349,4]
[328147343,1716934249439,-408.89,0.000349,4]
[328147344,1716934249448,-408.89,0.000349,4]
[328147345,1716934249458,-408.89,0.000349,4]
[328147346,1716934249469,-408.89,0.000349,4]
[328147347,1716934249479,-408.89,0.000349,4]
[328147348,1716934249488,-408.89,0.000349,4]
[328147349,1716934249498,-408.89,0.000349,4]
[328147350,1716934249507,-408.89,0.000349,4]
[328147351,1716934249517,-408.89,0.000349,4]
[328147352,1716934249528,-408.89,0.000349,4]
[328147353,1716934249538,-408.89,0.000349,4]
[328147354,1716934249548,-408.89,0.000349,4]
[328147355,1716934249558,-408.89,0.000349,4]
[328147356,1716934249568,-408.89,0.000349,4]
[328147357,1716934249577,-408.89,0.000349,4]
[328147358,1716934249587,-408.89,0.000349,4]
[328147359,1716934249597,-375.1630526,0.00034918,2]
[328147360,1716934249606,-1058989.05,0.0003492,6]
[328147361,1716934249618,-281242.83,0.0003492,6]
[328147362,1716934249627,-11942.84,0.0003492,6]
[328147363,1716934249636,-65756.25,0.0003492,6]
[328147364,1716934249645,-54934.93,0.0003492,6]
[328147365,1716934249654,-24345.13,0.0003492,6]
[328147366,1716934249663,-56454.81,0.0003492,6]
[328147367,1716934249673,-5610.92,0.0003492,6]
[328147368,1716934249682,-1074.737849,0.0003494,14]
[328147369,1716934249692,-21035.33743315,0.00034942,2]
[328147370,1716934249701,-500.0,0.00034946,2]
[328147371,1716934249711,-500.0,0.00034955,2]
[328147372,1716934249720,-385.56020184,0.00034955,2]
[328147373,1716934249729,-500.0,0.00034955,2]
[328147374,1716934249740,-500.0,0.00034955,2]
[328147375,1716934249749,-500.0,0.00034955,2]
[328147376,1716934249759,-577.81608564,0.00034955,2]
[328147377,1716934249768,-500.0,0.00034955,2]
[328147378,1716934249778,-500.0,0.00034955,2]
[328147379,1716934249787,-500.0,0.00034955,2]
[328147380,1716934249797,-350.61759202,0.00034955,2]
[328147381,1716934249807,-1000.0,0.0003496,14]
[328147382,1716934249816,-500.0,0.00034963,2]
[328147383,1716934249826,-10956.38790361,0.00034964,7]
[328147384,1716934249835,-1000.0,0.0003498,14]
[328147385,1716934249845,-50000.0,0.00035,15]
[328147386,1716934249854,-2178.16056674,0.00035,10]
[328147387,1716934249866,-3268.42980723,0.00035,2]
[328147388,1716934249875,-385.36306077,0.00035,2]
[328147389,1716934249885,-3903.36438098,0.00035,2]
[328147390,1716934249894,-500.0,0.00035,5]
[328147391,1716934249904,-500.0,0.00035,5]
[328147392,1716934249914,-15232.70743432,0.00035,7]
[328147393,1716934249924,-500.0,0.00035,2]
[328147394,1716934249933,-499.91,0.00035,2]
[328147395,1716934249943,-10636.26376452,0.00035,4]
[328147396,1716934249952,-501.59021085,0.00035,30]
[328147397,1716934249962,-288.49562483,0.00035,30]
[328147398,1716934249972,-200.0,0.00035,30]
[328147399,1716934249981,-1148.3617342,0.00035,30]
[328147400,1716934249991,-3000.0,0.00035,34]
[328147401,1716934250001,-500.0,0.00035,120]
[328147402,1716934250010,-1700.0,0.00035,30]
[328147403,1716934250020,-214.21060458,0.00035,30]
[328147404,1716934250029,-580.4618718,0.00035,2]
[328147405,1716934250038,-163.61666394,0.00035,120]
[328147406,1716934250049,-20000.0,0.00035,7]
[328147407,1716934250059,-194.0,0.00035,60]
[328147408,1716934250069,-1842.44542165,0.00035,4]
[328147409,1716934250080,-306.39773039,0.00035,4]
[328147410,1716934250091,-2000.0,0.00035,20]
[328147411,1716934250102,-2476.88606512,0.00035,30]
[328147412,1716934250113,-2000.0,0.00035,2]
[328147413,1716934250125,-150.0,0.00035,24]
[328147414,1716934250145,-1000.0,0.00035,14]
[328147415,1716934250160,-2000.0,0.00035,2]
[328147416,1716934250171,-1426.0,0.00035,4]
[328147417,1716934250184,-2000.0,0.00035,2]
[328147418,1716934250194,-2000.0,0.00035,2]
[328147419,1716934250205,-2304.0106,0.00035,2]
[328147420,1716934250216,-1635.0,0.00035,4]
[328147421,1716934250226,-677.0,0.00035,4]
[328147422,1716934250238,-936.0,0.00035,4]
[328147423,1716934250250,-643.0,0.00035,4]
[328147424,1716934250261,-2363.90951111,0.00035,120]
[328147425,1716934250272,-320.0,0.00035,60]
[328147426,1716934250283,-306.0860568,0.00035,2]
[328147427,1716934250294,-500.0,0.00035008,30]
[328147428,1716934250305,-500.0,0.00035008,30]
[328147429,1716934250315,-300.0,0.00035014,120]
[328147430,1716934250326,-450.0,0.0003502,30]
[328147431,1716934250337,-10956.38790361,0.00035036,7]
[328147432,1716934250348,-624.2638698,0.00035085,2]
[328147433,1716934250359,-178.2065111,0.00035085,2]
[328147434,1716934250371,-302.0,0.00035088,4]
[328147435,1716934250383,-1102.70988534,0.000351,7]
[328147436,1716934250397,-150.0,0.000351,8]
[328147437,1716934250409,-10956.38790361,0.00035109,7]
[328147438,1716934250421,-155.70703179,0.00035125,10]
[328147439,1716934250434,-765.0,0.00035145,2]
[328147440,1716934250446,-610.0,0.00035145,2]
[328147441,1716934250458,-500.0,0.00035147,2]
[328147442,1716934250471,-500.0,0.00035147,2]
[328147443,1716934250483,-500.0,0.00035147,2]
[328147444,1716934250494,-577.21,0.00035147,2]
[328147445,1716934250506,-375.1630526,0.00035176,2]
[328147446,1716934250517,-10956.38790361,0.00035182,7]
[328147447,1716934250528,-592.36670601,0.0003522,2]
[328147448,1716934250539,-448.06593715,0.00035229,2]
[328147449,1716934250549,-500.0,0.00035229,2]
[328147450,1716934250560,-158.68,0.00035229,2]
[328147451,1716934250570,-212.71925638,0.00035229,2]
[328147452,1716934250581,-563.30274319,0.00035229,2]
[328147453,1716934250591,-236.25,0.00035229,2]
[328147454,1716934250603,-313.82313434,0.00035229,2]
[328147455,1716934250615,-305.82,0.00035237,2]
[328147456,1716934250627,-10956.38790361,0.00035255,7]
[328147457,1716934250638,-500.0,0.00035281,30]
[328147458,1716934250649,-500.0,0.00035281,30]
[328147459,1716934250661,-178.09,0.00035288,30]
[328147460,1716934250672,-1000.0,0.000353,7]
[328147461,1716934250684,-394.14,0.000353,4]
[328147462,1716934250696,-394.14,0.000353,4]
[328147463,1716934250706,-394.14,0.000353,4]
[328147464,1716934250718,-394.14,0.000353,4]
[328147465,1716934250729,-394.14,0.000353,4]
[328147466,1716934250740,-394.14,0.000353,4]
[328147467,1716934250751,-394.14,0.000353,4]
[328147468,1716934250762,-394.14,0.000353,4]
[328147469,1716934250773,-394.14,0.000353,4]
[328147470,1716934250783,-394.14,0.000353,4]
[328147471,1716934250792,-394.14,0.000353,4]
[328147472,1716934250802,-394.14,0.000353,4]
[328147473,1716934250812,-394.14,0.000353,4]
[328147474,1716934250822,-394.14,0.000353,4]
[328147475,1716934250831,-394.14,0.000353,4]
[328147476,1716934250842,-394.14,0.000353,4]
[328147477,1716934250853,-394.14,0.000353,4]
[328147478,1716934250865,-394.14,0.000353,4]
[328147479,1716934250875,-394.14,0.000353,4]
[328147480,1716934250886,-394.14,0.000353,4]
[328147481,1716934250897,-408.89,0.000353,4]
[328147482,1716934250908,-408.89,0.000353,4]
[328147483,1716934250918,-408.89,0.000353,4]
[328147484,1716934250929,-408.89,0.000353,4]
[328147485,1716934250939,-408.89,0.000353,4]
[328147486,1716934250950,-408.89,0.000353,4]
[328147487,1716934250960,-408.89,0.000353,4]
[328147488,1716934250971,-408.89,0.000353,4]
[328147489,1716934250982,-408.89,0.000353,4]
[328147490,1716934250992,-408.89,0.000353,4]
[328147491,1716934251003,-408.89,0.000353,4]
[328147492,1716934251013,-408.89,0.000353,4]
[328147493,1716934251024,-408.89,0.000353,4]
[328147494,1716934251035,-408.89,0.000353,4]
[328147495,1716934251046,-408.89,0.000353,4]
[328147496,1716934251058,-408.89,0.000353,4]
[328147497,1716934251070,-408.89,0.000353,4]
[328147498,1716934251081,-408.89,0.000353,4]
[328147499,1716934251092,-408.89,0.000353,4]
[328147500,1716934251103,-408.89,0.000353,4]
[328147501,1716934251114,-1316.15119214,0.00035317,15]
[328147502,1716934251124,-10956.38790361,0.00035327,7]
[328147503,1716934251134,-150.0,0.0003539,7]
[328147504,1716934251144,-18106.4649704,0.000354,2]
[328147505,1716934251155,-184.71,0.000354,7]
[328147506,1716934251164,-1024.0,0.000354,15]
[328147507,1716934251174,-10956.38790361,0.000354,8]
[328147508,1716934251184,-10994.59971504,0.000354,31]
[328147509,1716934251194,-150.89340345,0.000354,7]
[328147510,1716934251204,-150.89340345,0.000354,7]
[328147511,1716934251214,-150.89340345,0.000354,7]
[328147512,1716934251224,-150.89340345,0.000354,7]
[328147513,1716934251234,-150.89340345,0.000354,7]
[328147514,1716934251244,-150.89340345,0.000354,7]
[328147515,1716934251255,-150.89340345,0.000354,7]
[328147516,1716934251265,-150.89340345,0.000354,7]
[328147517,1716934251276,-150.89340345,0.000354,7]
[328147518,1716934251286,-150.89340345,0.000354,7]
[328147519,1716934251296,-150.89340345,0.000354,7]
[328147520,1716934251306,-150.89340345,0.000354,7]
[328147521,1716934251317,-150.89340345,0.000354,7]
[328147522,1716934251327,-151.39,0.000354,7]
[328147523,1716934251336,-422.57652966,0.000354,7]
[328147524,1716934251345,-422.57652966,0.000354,7]
[328147525,1716934251354,-422.57652966,0.000354,7]
[328147526,1716934251364,-422.57652966,0.000354,7]
[328147527,1716934251375,-422.57652966,0.000354,7]
[328147528,1716934251384,-422.57652966,0.000354,7]
[328147529,1716934251397,-422.57652966,0.000354,7]
[328147530,1716934251408,-422.57652966,0.000354,7]
[328147531,1716934251419,-422.57652966,0.000354,7]
[328147532,1716934251429,-422.57652966,0.000354,7]
[328147533,1716934251439,-422.57652966,0.000354,7]
[328147534,1716934251450,-422.57652966,0.000354,7]
[328147535,1716934251460,-422.57652966,0.000354,7]
[328147536,1716934251474,-422.57652966,0.000354,7]
[328147537,1716934251484,-422.57652966,0.000354,7]
[328147538,1716934251494,-422.57652966,0.000354,7]
[328147539,1716934251504,-422.57652966,0.000354,7]
[328147540,1716934251514,-422.57652966,0.000354,7]
[328147541,1716934251524,-422.57652966,0.000354,7]
[328147542,1716934251535,-423.07,0.000354,7]
[328147543,1716934251545,-184.72989811,0.000354,7]
[328147544,1716934251555,-184.72989811,0.000354,7]
[328147545,1716934251565,-185.22,0.000354,7]
[328147546,1716934251575,-158.44705553,0.000354,7]
[328147547,1716934251585,-158.44705553,0.000354,7]
[328147548,1716934251596,-158.44705553,0.000354,7]
[328147549,1716934251606,-158.44705553,0.000354,7]
[328147550,1716934251617,-158.44705553,0.000354,7]
[328147551,1716934251628,-158.44705553,0.000354,7]
[328147552,1716934251638,-158.44705553,0.000354,7]
[328147553,1716934251648,-158.44705553,0.000354,7]
[328147554,1716934251657,-158.44705553,0.000354,7]
[328147555,1716934251667,-158.44705553,0.000354,7]
[328147556,1716934251677,-158.44705553,0.000354,7]
[328147557,1716934251687,-158.44705553,0.000354,7]
[328147558,1716934251696,-158.44705553,0.000354,7]
[328147559,1716934251706,-158.94,0.000354,7]
[328147560,1716934251716,-155.33,0.000354,7]
[328147561,1716934251726,-155.70703179,0.000354,10]
[328147562,1716934251735,-500.0,0.00035421,2]
[328147563,1716934251746,-500.0,0.00035421,2]
[328147564,1716934251756,-500.0,0.00035421,2]
[328147565,1716934251767,-577.21,0.00035421,2]
[328147566,1716934251777,-1766.76028103,0.00035423,40]
[328147567,1716934251787,-300.0,0.00035468,120]
[328147568,1716934251796,-300.0,0.0003547,2]
[328147569,1716934251807,-250.0,0.0003547,2]
[328147570,1716934251817,-300.0,0.0003547,2]
[328147571,1716934251827,-105328.00088378,0.0003549,10]
[328147572,1716934251838,-5431.66531607,0.0003549,10]
[328147573,1716934251847,-4534.56088911,0.000355,5]
[328147574,1716934251858,-33768246.80897115,0.000355,5]
[328147575,1716934251868,-1738840.11870606,0.000355,5]
[328147576,1716934251878,-186503.7513582,0.000355,5]
[328147577,1716934251893,-426693.90033598,0.000355,5]
[328147578,1716934251905,-486.42530015,0.000355,5]
[328147579,1716934251917,-6953.1604585,0.000355,5]
[328147580,1716934251928,-31961.53524856,0.000355,5]
[328147581,1716934258885,268.15491561,0.00013973,2]
[328147582,1716934637263,156.72,0.00013973,2]
[328147946,1716935431776,-178.84589632,0.00017259,2]
[328147947,1716935431786,-150.0,0.00019725,2]
[328147948,1716935431795,-71.55926995,0.00019725,2]
[328147949,1716935431809,-78.44073005,0.00019725,2]
[328147950,1716935431819,-862.89388826,0.00021697,2]
[328147951,1716935431828,-2051.35862913,0.000236,2]
[328147952,1716935431837,-750.0,0.00027,2]
[328147953,1716935431847,-265.41628419,0.000289,2]
[328147954,1716935431857,-150.0,0.00030896,2]
[328147955,1716935431866,-161.88,0.00031252,2]
[328147956,1716935431876,-701.953689,0.00032735,2]
[328147957,1716935431885,-1008.7,0.000329,2]
[328147958,1716935431895,-250.0,0.00033234,115]
[328147959,1716935431905,-217.45,0.00033339,2]
[328147960,1716935431914,-158.66,0.00033362,120]
[328147961,1716935431924,-1298.78853938,0.00033723,4]
[328147962,1716935431934,-562.14,0.00033759,2]
[328147963,1716935431944,-1008.7,0.00033885,2]
[328147964,1716935431954,-1000.0,0.000341,7]
[328147965,1716935431963,-200.0,0.00034214,120]
[328147966,1716935431973,-2005.8594,0.00034223,2]
[328147967,1716935431982,-156.72,0.00034475,2]
[328147968,1716935431992,-2792.9755,0.0003449,2]
[328147969,1716935432002,-500.0,0.00034799,10]
[328147970,1716935432012,-1008.7,0.0003487,2]
[328147971,1716935432021,-1209.36333999,0.00035,4]
[328147972,1716935432033,-540.396828,0.00035,4]
[328147973,1716935432044,-399.20391486,0.00035,4]
[328147974,1716935432056,-4000.0,0.00035,4]
[328147975,1716935432067,-499.2998041,0.00035,4]
[328148034,1716935437536,-862.89388826,0.0002,2]
[328148035,1716935437545,-740.0,0.00034435,2]
[328148036,1716935437554,-740.0,0.0003479,2]
[328148037,1716935437563,-1887.38577157,0.00035,4]
[328148038,1716935437575,-851.47770287,0.00035,4]
[328148039,1716935437586,-3028.35026297,0.00035,4]
[328148040,1716935437636,-1274.25252714,0.00035,4]
[328148041,1716935437749,-6921.915,0.00035,4]
[328148042,1716935437863,-678.22150474,0.00035,4]
[328148043,1716935437875,-6693.8408973,0.00035,4]
[328148044,1716935437884,-2178.64820667,0.00035,10]
[328148045,1716935437894,-1842.44542165,0.00035098,4]
[328148046,1716935437903,-3269.15925034,0.00035098,2]
[328148047,1716935437912,-2000.0,0.000351,2]
[328148048,1716935437921,-156.03580885,0.00035115,3]
[328148049,1716935437930,-740.0,0.00035145,2]
[328148050,1716935437941,-161.88,0.00035163,2]
[328148051,1716935437950,-178.09,0.00035288,30]
[328148052,1716935437959,-1087.93649749,0.000354,6]
[328148053,1716935437968,-1087.9364975,0.000354,6]
[328148054,1716935437977,-277.887,0.000354,2]
[328148055,1716935437987,-1253.53857468,0.000354,2]
[328148056,1716935437996,-400.54656548,0.000354,2]
[328148057,1716935438005,-150.0,0.000354,8]
[328148058,1716935438014,-291.10659976,0.000354,2]
[328148059,1716935438023,-500.0,0.0003547,2]
[328148060,1716935438032,-2460.5985384,0.00035476,2]
[328148061,1716935438041,-2460.5985384,0.00035476,2]
[328148062,1716935438050,-2460.5985384,0.00035476,2]
[328148063,1716935438061,-2460.5985384,0.00035476,2]
[328148064,1716935438070,-2460.5985384,0.00035476,2]